Cogmind - Beta 16 --- EXPLORER MODE // 2025.11.16 @ 19:16:36 Player: ralann Result: Destroyed by S-10 Pest with Light Assault Rifle Performance ------------- Evolutions (0) 0 Regions Visited (1) 200 Robots Destroyed (4) 20 Value Destroyed (64) 64 Prototype IDs (0) 0 Alien Tech Used (0) 0 Bonus (0) 0 TOTAL SCORE: 284 Bonus ------- None Cogmind --------- Core Integrity 0/250 Matter 300/300 Energy 250/250 System Corruption 0% Temperature Cool (0) Movement Walking (120) Location -10/Materials Parts ------- > --- POWER (2) -------- Ion Engine > --- PROPULSION (2) --- Aluminum Leg Aluminum Leg > --- UTILITY (2) ------ ECM Suite Utility Shielding > --- WEAPON (2) ------- (None) > --- INVENTORY (5) ---- (None) Peak State ------------ > --- POWER ------------ Ion Engine > --- PROPULSION ------- Aluminum Leg Aluminum Leg > --- UTILITY ---------- ECM Suite Utility Shielding > --- WEAPON ----------- EM Pulse Gun Light Assault Rifle > --- INVENTORY -------- (None) [Rating: 7] Favorites ----------- Power Ion Engine Engine Ion Engine Propulsion Aluminum Leg Leg Aluminum Leg Wheel Wheel Utility ECM Suite Device ECM Suite Protection Utility Shielding Weapon Light Assault Rifle Energy Gun EM Pulse Gun Ballistic Gun Light Assault Rifle Build | -11 -10 ------- Run | Yrd Mat Slots Evolved 1 | . 1 Power 1 | . 1 Propulsion . | . . Utility . | . . Weapon . | . . Parts Attached 11 | 11 . Power 2 | 2 . Engine 2 | 2 . Core . | . . Reactor . | . . Propulsion 4 | 4 . Treads . | . . Leg 2 | 2 . Wheel 2 | 2 . Hover . | . . Flight . | . . Utility 2 | 2 . Device 1 | 1 . Storage . | . . Processor . | . . Hackware . | . . Protection 1 | 1 . Artifact . | . . Weapon 3 | 3 . Energy Gun 2 | 2 . Energy Cannon . | . . Ballistic Gun 1 | 1 . Ballistic Cannon . | . . Launcher . | . . Special Weapon . | . . Impact Weapon . | . . Slashing Weapon . | . . Piercing Weapon . | . . Special Melee Weapon . | . . Unidentified Prototypes . | . . Parts Lost 6 | 4 2 Power 1 | 1 . Propulsion 2 | 2 . Utility . | . . Weapon 3 | 1 2 Highest Loss Streak 3 | 3 2 To Critical Strikes 1 | . 1 Average Backups . | . . Power . | . . Propulsion . | . . Utility . | . . Weapon . | . . Tool/Special . | . . Unused Backups . | . . Power . | . . Propulsion . | . . Utility . | . . Weapon . | . . Tool/Special . | . . Average Slot Usage (%) 80 | . 80 Engine 12 | . 12 Leg 25 | . 25 Device 12 | . 12 Protection 12 | . 12 Energy Gun 9 | . 9 Ballistic Gun 8 | . 8 Peak Build Rating 7 | 7 7 Average Rating 5 | 4 6 On Entrance 3 | . 7 Avg Prop Armor Cover (%) . | . . Naked Turns . | . . Heaviest Build 11 | 11 11 Greatest Support 20 | 20 20 Greatest Overweight (x) 1 | 1 . Average Overweight (x) . | . . Largest Inventory Capacity 5 | 5 5 Average Capacity 5 | 5 5 Most Carried 5 | 5 . Average Carried . | . . Final Capacity 5 | 5 5 Final Carried . | . . Class Distribution -------------------- 100% | Hacker-Mutant Dominant Class ---------------- Hacker-Mutant | -10/Materials Resources | -11 -10 ----------- Run | Yrd Mat Matter Collected 259 | 248 11 Remotely . | . . Salvage Created 59 | 48 11 Parts 5 | 3 2 Haulers Intercepted . | . . Recyclers Shooed . | . . Parts Field Recycled . | . . Retrieved Matter . | . . Parts Self-Destructed . | . . Prevented . | . . Parts Restored . | . . Kills | -11 -10 ------- Run | Yrd Mat Combat Hostiles Destroyed 4 | 1 3 Melee 3 | . 3 Guns 1 | 1 . Classes Destroyed 2 | 1 1 Swarmer 3 | . 3 Grunt 1 | 1 . Best Kill Streak 1 | 1 1 Combat Bots Only 1 | 1 1 Max Kills in Single Turn 1 | 1 1 Gunslinging . | . . Exploded . | . . Melee 1 | . 1 Uniques/NPCs Destroyed . | . . Combat | -11 -10 -------- Run | Yrd Mat Hostile Shots Fired 162 | 75 87 Missed 33 | 10 23 Hits 129 | 65 64 Projectile 129 | 65 64 Critical Strikes 2 | . 2 Damage Taken 738 | 433 305 Core 254 | 180 74 Absorbed by Shields . | . . Redirected to Shielding 2 | . 2 Ignored by Resistances 504 | 278 226 Core Remaining (%) 28 | 28 . Volleys Fired 5 | 4 1 Largest 2 | 2 1 Hottest 70 | 70 40 Shots Fired 7 | 6 1 Gun 7 | 6 1 Cannon . | . . Launcher . | . . Special . | . . Kinetic 4 | 4 . Thermal 2 | 2 . Explosive . | . . Electromagnetic 1 | . 1 Robot Hit Streak 5 | 4 5 Robot Miss Streak . | . . Penetration Max . | . . Secondary Targets . | . . Shots Hit Robots 5 | 4 1 Core Hits 15 | 3 12 Critical Kills . | . . Critical Parts Destroyed . | . . Critical Strikes . | . . Melee Attacks . | . . Impact . | . . Slashing . | . . Piercing . | . . Sneak Attacks . | . . Combat Hostiles . | . . Follow-up Attacks . | . . Damage Inflicted 104 | 44 60 Guns 49 | 38 11 Cannons . | . . Explosions . | . . Melee . | . . Ramming 55 | 6 49 Kinetic 25 | 25 . Thermal 13 | 13 . Explosive . | . . Electromagnetic 11 | . 11 Impact . | . . Slashing . | . . Piercing . | . . Highest Corruption . | . . Average Corruption . | . . Corruption Purged . | . . Corruption Blocked . | . . Overload Shots . | . . Overflow Damage . | . . Projectiles . | . . Explosions . | . . Melee . | . . Knockbacks . | . . Impact . | . . Kinetic . | . . Secondary . | . . Self-Inflicted Damage . | . . Shots . | . . Rammed . | . . Targets Rammed 32 | 2 30 Kicked 32 | 2 30 Crushed . | . . Highest Temperature 31 | 31 . Average Temperature 13 | 13 . Received Heat Transfer 390 | 390 . Siege Activations . | . . Martial Activations . | . . Shielding Activations . | . . Robots Disrupted . | . . Combat Hostiles . | . . Robots Corrupted . | . . Combat Hostiles . | . . Parts Fried . | . . Impact Corruptions . | . . Robots Melted . | . . Combat Hostiles . | . . Parts Melted . | . . Heat Transferred 37 | 37 . Parts Sabotaged . | . . Parts Stolen . | . . Parts Stripped . | . . Power Chain Reactions . | . . Alert | -11 -10 ------- Run | Yrd Mat Maximum Alert Level . | . . Low Security (%) 100 | 100 100 Level 1 . | . . Level 2 . | . . Level 3 . | . . Level 4 . | . . Level 5 . | . . High Security . | . . Max Security . | . . Peak Influence 30 | 20 30 Initial . | . . Average . | . 1 Influence Increases 100 | 20 80 Destroy 0b10 Robot/C 80 | 20 60 Destroy Leader 20 | . 20 Influence Decreases 70 | 20 50 Time Decay 70 | 20 50 Squads Dispatched . | . . Investigation . | . . Extermination . | . . Reinforcement . | . . Assault . | . . Garrison . | . . Intercept . | . . Searches Triggered . | . . Construction Impeded . | . . Haulers Reinforced . | . . Active Scanning Responses . | . . Cargo Convoy Interrupts . | . . Stealth | -11 -10 --------- Run | Yrd Mat Distress Signals 1 | . 1 Communications Jammed . | . . Distress Signals . | . . Times Spotted 7 | 1 6 Peak Tracking Total 3 | 1 3 Tactical Retreats . | . . Traps | -11 -10 ------- Run | Yrd Mat Traps Triggered . | . . Indirectly . | . . Trap Hack Attempts . | . . Triggered . | . . Disarmed . | . . Reprogrammed . | . . Reused . | . . Traps Extracted . | . . Installed . | . . Triggered . | . . Machines | -11 -10 ---------- Run | Yrd Mat Machines Disabled . | . . Max in Single Turn . | . . Machines Repaired . | . . Machines Dismantled . | . . Machines Sabotaged . | . . Overloaded Fab Kills . | . . Hacking | -11 -10 --------- Run | Yrd Mat Machines Accessed . | . . Terminals . | . . Fabricators . | . . Repair Stations . | . . Recycling Units . | . . Scanalyzers . | . . Garrison Access . | . . Total Hacks . | . . Successful . | . . Failed . | . . Catastrophic . | . . Database Lockouts . | . . Manual . | . . Terminals . | . . Fabricators . | . . Repair Stations . | . . Recycling Units . | . . Scanalyzers . | . . Garrison Access . | . . Terminal Hacks . | . . Fabricator Hacks . | . . Repair Station Hacks . | . . Recycling Unit Hacks . | . . Scanalyzer . | . . Garrison Access Hacks . | . . Unauthorized Hacks . | . . Terminals . | . . Fabricators . | . . Repair Stations . | . . Recycling Units . | . . Scanalyzers . | . . Garrison Access . | . . Data Cores Recovered . | . . Used . | . . Hacking Detections . | . . Full Trace Events . | . . Feedback Events . | . . Feedback Blocked . | . . Robot Schematics Acquired . | . . Robots Built . | . . Authchips . | . . Time . | . . Total Robot Build Rating . | . . Part Schematics Acquired . | . . Parts Built . | . . Authchips . | . . Time . | . . Total Part Build Rating . | . . Part Studies Acquired . | . . Parts Repaired . | . . Time . | . . Parts Recycled . | . . Recycled Matter . | . . Retrieved Matter . | . . Retrieved Components . | . . Parts Scanalyzed . | . . Part Schematics Acquired . | . . Parts Damaged . | . . Bothacking | -11 -10 ------------ Run | Yrd Mat Used RIF Installer . | . . Robots Hacked . | . . Non-combat . | . . Combat . | . . Robot Hacks Applied . | . . Relay Couplers Released . | . . Fabnet Peak Effective % . | . . Robots Rewired . | . . Allies Hacked . | . . Hacks Repelled . | . . Allies | -11 -10 -------- Run | Yrd Mat Total Allies . | . . Largest Group . | . . Highest-Rated Group . | . . Highest-Rated Ally . | . . Total Orders . | . . Ally Attacks . | . . Total Damage . | . . Kills . | . . Allies Corrupted . | . . Allies Melted . | . . Intel | -11 -10 ------- Run | Yrd Mat Active Infowar (turns) 3113 | 2382 731 ECM 3113 | 2382 731 Robot Analysis Total . | . . Derelict Logs Recovered . | . . Drone Launches . | . . Drone Recoveries . | . . Exploration | -11 -10 ------------- Run | Yrd Mat Turns Passed 5410 | 4679 731 Spaces Moved 547 | 494 53 Core 50 | 50 . Treads . | . . Legs 447 | 394 53 Wheels 50 | 50 . Hover . | . . Flight . | . . Fastest Speed 50 | 50 120 Average Speed 110 | 109 120 Slowest Speed 120 | 120 120 Overloaded Moves . | . . Propulsion Burnouts . | . . Robots Hopped . | . . Potential Cave-ins . | . . Cave-ins Triggered . | . . Exploration Rate (%) 22 | 37 8 Regions Visited 1 Branch Regions . Pre-discovered Areas . | . . Known Exits Taken 1 | 1 . Unknown Exits Taken . | . . Scrap Searched . | . . Spaces Dug . | . . Terrain Destroyed . | . . Melee . | . . Projectile . | . . AOE . | . . Terrain Rammed . | . . Walls Destroyed . | . . Machines Disabled . | . . Actions | -11 -10 --------- Run | Yrd Mat Total 5341 | 4627 714 Wait 4736 | 4106 630 Move 546 | 493 53 Hop . | . . Pick Up 11 | 11 . Fast Attach . | . . Attach 11 | 11 . Detach . | . . Swap . | . . Drop . | . . Fire 5 | 4 1 Melee . | . . Ram . | . . Kick 32 | 2 30 Crush . | . . Escape Stasis . | . . Rewire . | . . Trap . | . . Miscellaneous . | . . Route ------- -11/Scrapyard -10/Materials History --------- Turn | Location | Event 2 | -11/Scrapyard | Met Revision 17 1114 | -11/Scrapyard | Identified exit to Materials 1114 | -11/Scrapyard | Discovered exit to Materials (range 8) 1337 | -11/Scrapyard | Core integrity fell below 50% 1407 | -11/Scrapyard | Lost 3 parts (1p1n1w) 4680 | -11/Scrapyard | Entered Materials 4680 | -10/Materials | Evolved 1 slot: Power x1 4681 | -10/Materials | Build established: Hacker-Mutant 5256 | -10/Materials | Core integrity fell below 20% 5411 | -10/Materials | Destroyed by S-10 Pest with Light Assault Rifle Last Messages --------------- EM Pulse Gun destroyed. Kicked S-10 Pest out of the way. S-10 Pest destroyed. Acquired 11 matter. Kicked S-10 Pest. Kicked S-10 Pest out of the way. R-06 Scavenger collects Flight Unit. R-06 Scavenger collects Lgt. Ion Engine. Kicked S-10 Pest. Kicked S-10 Pest out of the way. Kicked S-10 Pest. S-10 Pest destroyed. K-01 Serf collects debris. K-01 Serf cleans the Material Processor. Kicked S-10 Pest out of the way. Kicked S-10 Pest. S-10 Pest destroyed. Kicked S-10 Pest. Kicked S-10 Pest out of the way. Kicked S-10 Pest. Map ----- +----------------------------------------------------+ | ??????????????????????????????????????????????? | | ??????????????????????????????????????????????? | | ??????????????????????????????????????????????? | | ??????????????????????????????????????????????? | | ??????????????????????????????????????????????? | | ??????????????????????????????????????????????? | | ??????????????????????????????????????????????? | | ??????????????????????????????????????????????? | | ??????????????????????????????????????????????? | | ??????????????????????????????????????????????? | | ??????????????????????????????????????????????? | | ??????????????????????????????????????????????? | | ??????????????????????????????????????????????? | | ??????????????????????????????????????????????? | | ??????????????????????????? ??????????????????? | | ?????????????????????????? ??????????????????? | | ?????????????????????????? ??????????????????? | | ?????????????????????????? ?????????? ?????? | | ?????????????????????#####+#######???? #????? | | ?????????????????????? # u #???? #????? | | ???????????????????????+ """ #???? ####?? | | ???????????????????????# """"" #???? !##? | | ???????????????????????# """"" #???? !?? | | ???????????????????????#%""""" #???? !?? | | ???????????????????????#%s""" #???# ??? | | ???????????????????????#%@% u #???# ???? | | ???????????????????????# %% #???# ????? | | ???????????????????????#####+#####???# #????? | | ???????????????????????????# #???????# #????? | | ???????????????????????????# #???????# #????? | | ???????????????????????????# ######### #????? | | ???????????????????????????# #????? | | ???????????????????????????# #????? | | ?????????????????????????# + #????? | | ?????????????????????????# ########### #????? | | ?????????????????????????##??????????# #????? | | ?????????????????????????????????????# #????? | | ?????????????????????????????????????+ #????? | | ?????????????????????????????????????# +????? | | ?????????????????????????????????????# #????? | | ?????????????????????????????????????# #????? | | ?????????????????????????????????????#####????? | | ??????????????????????????????????????????????? | | ??????????????????????????????????????????????? | | ??????????????????????????????????????????????? | | ??????????????????????????????????????????????? | | ??????????????????????????????????????????????? | | ??????????????????????????????????????????????? | | ??????????????????????????????????????????????? | | | +----------------------------------------------------+ Best States ------------- Heat Dissipation 25 Energy Generation 10 Energy Capacity 250 Matter Stores 300 Matter Capacity 300 Sight Range 16 Terrain Scan Density 10 ECM Strength 1 Resistance: KI 35 Resistance: TH 35 Resistance: EX 35 Resistance: EM 35 Resistance: I 35 Resistance: S 35 Resistance: P 35 Utility Shielding 33 Evasion (%) 55 Offensive Hacking 20 Item Schematics ----------------- None Robot Schematics ------------------ None Fabricated ------------ Nothing Repaired ---------- Nothing Studied --------- None Alien Tech Used ----------------- None Achievements -------------- DATA ERROR: Steam Global Achievement% For Emergencies Only Challenges ------------ None Game ------ Seed QuantumCoreJetlance Manual? 0 Play Time 00:17:52 Cumulative 0.2 hours Start 2025.11.16 @ 18:58:54 End 2025.11.16 @ 19:16:36 Sessions 1 Manual Loads 0 Difficulty Explorer Special Mode None Game No. 2 Rogue 0 Adventurer 0 Explorer 2 Win Type - Total 0 Types 0/0/0/0/0/0/0/0/0/0 Lore% 0 Gallery% 0 Achievement% 0 Wizard Run 0 Options --------- Layout 1 ASCII 0 Keyboard 0 Movement Numpad Keybinds 0 Fullscreen 1 Font 16/X11Caps Map View 25x20 Zoom Use 95% Tactical HUD 0 Map Filters NONE Filters NONE Steam SD RUN: b8e69277-2f02-4b1f-9e57-83f04e7ffd34